Cogmind - Beta 16 @@@ ROGUE MODE // 2025.10.27 @ 08:58:53 Player: Miwa Result: Self-destructed Performance ------------- Evolutions (1) 500 Regions Visited (3) 600 Robots Destroyed (16) 80 Value Destroyed (238) 238 Prototype IDs (2) 40 Alien Tech Used (0) 0 Bonus (0) 0 TOTAL SCORE: 1458 Bonus ------- None Cogmind --------- Core Integrity 322/400 Matter 114/300 Energy 96/100 System Corruption 0% Temperature Cool (0) Movement Flying (34) Location -9/Mines Parts ------- > --- POWER (1) -------- (None) > --- PROPULSION (4) --- Flight Unit Flight Unit Flight Unit > --- UTILITY (2) ------ Medium Storage Unit Weight Redist. System > --- WEAPON (2) ------- Assault Rifle Assault Rifle > --- INVENTORY (10) --- Light Ion Engine Small Storage Unit Sensor Array Transport Network Coupler Core Shielding Hacking Suite Medium Laser Medium Laser Assault Rifle Assault Rifle Peak State ------------ > --- POWER ------------ Light Nuclear Core > --- PROPULSION ------- Flight Unit Flight Unit Flight Unit Flight Unit > --- UTILITY ---------- Medium Storage Unit Weight Redist. System > --- WEAPON ----------- Assault Rifle Assault Rifle > --- INVENTORY -------- Light Ion Engine Small Storage Unit Sensor Array Transport Network Coupler Core Shielding Hacking Suite Medium Laser Medium Laser [Rating: 13] Favorites ----------- Power Ion Engine Engine Ion Engine Power Core Light Nuclear Core Propulsion Light Treads Treads Light Treads Flight Unit Flight Unit Utility Medium Storage Unit Device Weight Redist. System Storage Medium Storage Unit Protection Core Shielding Weapon Assault Rifle Energy Gun Medium Laser Ballistic Gun Assault Rifle Build | -11 -10 -9 -9 ------- Run | Yrd Mat Mat Min Slots Evolved 2 | . . 2 . Power . | . . . . Propulsion 2 | . . 2 . Utility . | . . . . Weapon . | . . . . Parts Attached 23 | 7 8 8 . Power 2 | 1 1 . . Engine 1 | 1 . . . Core 1 | . 1 . . Reactor . | . . . . Propulsion 9 | 2 3 4 . Treads 5 | 2 3 . . Leg . | . . . . Wheel . | . . . . Hover . | . . . . Flight 4 | . . 4 . Utility 6 | 1 3 2 . Device 1 | . . 1 . Storage 4 | 1 2 1 . Processor . | . . . . Hackware . | . . . . Protection 1 | . 1 . . Artifact . | . . . . Weapon 6 | 3 1 2 . Energy Gun 2 | 2 . . . Energy Cannon . | . . . . Ballistic Gun 4 | 1 1 2 . Ballistic Cannon . | . . . . Launcher . | . . . . Special Weapon . | . . . . Impact Weapon . | . . . . Slashing Weapon . | . . . . Piercing Weapon . | . . . . Special Melee Weapon . | . . . . Unidentified Prototypes . | . . . . Parts Lost 3 | . 1 . 2 Power 2 | . 1 . 1 Propulsion 1 | . . . 1 Utility . | . . . . Weapon . | . . . . Highest Loss Streak 2 | . 1 . 2 To Critical Strikes . | . . . . Average Backups 7 | 4 8 8 10 Power . | . 1 1 1 Propulsion 3 | 2 4 2 . Utility 1 | . . 2 5 Weapon 1 | 1 1 2 4 Tool/Special . | . . . . Unused Backups 11 | . 5 . 6 Power 1 | . . . 1 Propulsion 5 | . 5 . . Utility 3 | . . . 3 Weapon 2 | . . . 2 Tool/Special . | . . . . Average Slot Usage (%) 91 | . 92 87 92 Engine 6 | . 8 . . Core 6 | . 5 11 7 Treads 23 | . 28 15 . Flight 5 | . . 17 40 Device 1 | . . 3 11 Storage 13 | . 14 11 11 Protection 7 | . 7 7 . Energy Gun 3 | . 5 . . Ballistic Gun 22 | . 22 22 22 Peak Build Rating 13 | 6 10 13 13 Average Rating 7 | 4 7 10 11 On Entrance 7 | . 6 9 13 Avg Prop Armor Cover (%) 2 | . . 2 . Naked Turns . | . . . . Heaviest Build 24 | 14 24 20 19 Greatest Support 46 | 40 40 46 22 Greatest Overweight (x) 1 | 1 . . . Average Overweight (x) . | . . . . Largest Inventory Capacity 25 | 8 10 25 10 Average Capacity 9 | 6 9 10 10 Most Carried 10 | 7 10 10 10 Average Carried 7 | 4 8 8 10 Final Capacity 10 | 8 10 10 10 Final Carried 10 | 6 9 10 10 Class Distribution -------------------- 90% | Mutant 9% | Scavenger-Sprinter Dominant Class ---------------- Mutant | -10/Materials Mutant | -9/Materials Scavenger-Sprinter | -9/Mines Resources | -11 -10 -9 -9 ----------- Run | Yrd Mat Mat Min Matter Collected 592 | 279 198 83 32 Remotely . | . . . . Salvage Created 511 | 116 225 143 27 Parts 35 | 4 18 12 1 Haulers Intercepted 2 | . 1 1 . Recyclers Shooed . | . . . . Parts Field Recycled . | . . . . Retrieved Matter . | . . . . Parts Self-Destructed . | . . . . Prevented . | . . . . Parts Restored . | . . . . Kills | -11 -10 -9 -9 ------- Run | Yrd Mat Mat Min Combat Hostiles Destroyed 6 | . 4 1 1 Guns 6 | . 4 1 1 Classes Destroyed 10 | 2 5 1 2 Worker 1 | . . . 1 Builder 1 | . 1 . . Tunneler 1 | 1 . . . Hauler 2 | . 1 1 . Recycler 1 | 1 . . . Operator 1 | . . 1 . Watcher 4 | . 2 2 . Swarmer 2 | . 2 . . Grunt 3 | . 2 1 . Assembled 1 | . . . 1 Best Kill Streak 3 | 2 3 1 2 Combat Bots Only 2 | . 2 1 1 Max Kills in Single Turn 1 | 1 1 1 1 Gunslinging . | . . . . Exploded . | . . . . Melee . | . . . . Uniques/NPCs Destroyed . | . . . . Combat | -11 -10 -9 -9 -------- Run | Yrd Mat Mat Min Hostile Shots Fired 71 | . 32 12 27 Missed 25 | . 10 4 11 Hits 46 | . 22 8 16 Melee 3 | . . . 3 Projectile 43 | . 22 8 13 Damage Taken 610 | . 248 84 278 Core 107 | . 29 . 78 Absorbed by Shields . | . . . . Redirected to Shielding 1 | . 1 . . Core Remaining (%) 94 | 100 88 . . Volleys Fired 61 | 3 26 25 7 Largest 2 | 2 2 2 2 Hottest 70 | 70 70 40 40 Shots Fired 122 | 6 52 50 14 Gun 122 | 6 52 50 14 Cannon . | . . . . Launcher . | . . . . Special . | . . . . Kinetic 109 | 3 42 50 14 Thermal 13 | 3 10 . . Explosive . | . . . . Electromagnetic . | . . . . Robot Hit Streak 8 | 3 8 7 3 Robot Miss Streak 5 | 2 4 5 2 Penetration Max . | . . . . Secondary Targets . | . . . . Shots Hit Robots 64 | 3 23 31 7 Core Hits 31 | 3 12 10 6 Critical Kills . | . . . . Critical Parts Destroyed 3 | . . 3 . Critical Strikes 3 | . . 3 . Destroy 3 | . . 3 . Melee Attacks . | . . . . Impact . | . . . . Slashing . | . . . . Piercing . | . . . . Sneak Attacks . | . . . . Combat Hostiles . | . . . . Follow-up Attacks . | . . . . Damage Inflicted 833 | 48 280 392 113 Guns 833 | 48 280 392 113 Cannons . | . . . . Explosions . | . . . . Melee . | . . . . Ramming . | . . . . Kinetic 769 | 10 254 392 113 Thermal 64 | 38 26 . . Explosive . | . . . . Electromagnetic . | . . . . Impact . | . . . . Slashing . | . . . . Piercing . | . . . . Highest Corruption 2 | . 2 . . Average Corruption 2 | . 2 . . Corruption Purged . | . . . . Corruption Blocked . | . . . . Effects 12 | . 12 . . Message Errors 1 | . 1 . . Matter Fused 3 | . 3 . . Data Loss (minor) 4 | . 4 . . Data Loss (major) 2 | . 2 . . Misfires 1 | . 1 . . Weapon Failures 1 | . 1 . . Overload Shots . | . . . . Overflow Damage . | . . . . Projectiles . | . . . . Explosions . | . . . . Melee . | . . . . Knockbacks . | . . . . Impact . | . . . . Kinetic . | . . . . Secondary . | . . . . Self-Inflicted Damage . | . . . . Shots . | . . . . Rammed . | . . . . Targets Rammed . | . . . . Kicked . | . . . . Crushed . | . . . . Highest Temperature 27 | 27 27 4 16 Average Temperature 11 | 14 10 4 9 Received Heat Transfer 226 | . 78 48 100 Siege Activations . | . . . . Martial Activations . | . . . . Shielding Activations . | . . . . Robots Disrupted . | . . . . Combat Hostiles . | . . . . Robots Corrupted . | . . . . Combat Hostiles . | . . . . Parts Fried . | . . . . Impact Corruptions . | . . . . Robots Melted . | . . . . Combat Hostiles . | . . . . Parts Melted . | . . . . Heat Transferred 185 | 111 74 . . Parts Sabotaged . | . . . . Parts Stolen . | . . . . Parts Stripped . | . . . . Power Chain Reactions . | . . . . Alert | -11 -10 -9 -9 ------- Run | Yrd Mat Mat Min Maximum Alert Level . | . . . . Low Security (%) 100 | 100 100 100 100 Level 1 . | . . . . Level 2 . | . . . . Level 3 . | . . . . Level 4 . | . . . . Level 5 . | . . . . High Security . | . . . . Max Security . | . . . . Peak Influence 69 | 5 69 42 26 Initial 6 | . . . 6 Average 14 | . 15 19 16 Influence Increases 295 | 10 159 106 20 Destroy 0b10 Robot/C 100 | . 80 20 . Destroy 0b10 Robot/NC 55 | 10 20 20 5 Destroy Leader 32 | . 26 6 . Successful Hack 47 | . 17 30 . Destroy Structure 1 | . 1 . . Partial Spotted 15 | . . . 15 Lose Combat Pursuer 45 | . 15 30 . Influence Decreases 295 | 10 159 90 36 Entered New Map 10 | . . . 10 Time Decay 265 | 10 159 90 6 Lost Part 20 | . . . 20 Squads Dispatched 2 | . 1 1 . Investigation . | . . . . Extermination . | . . . . Reinforcement 2 | . 1 1 . Assault . | . . . . Garrison . | . . . . Intercept . | . . . . Searches Triggered . | . . . . Construction Impeded . | . . . . Haulers Reinforced . | . . . . Active Scanning Responses . | . . . . Cargo Convoy Interrupts . | . . . . Stealth | -11 -10 -9 -9 --------- Run | Yrd Mat Mat Min Distress Signals . | . . . . Communications Jammed . | . . . . Distress Signals . | . . . . Times Spotted 39 | . 8 12 19 Peak Tracking Total 20 | . 4 4 20 Tactical Retreats 3 | . 1 2 . Traps | -11 -10 -9 -9 ------- Run | Yrd Mat Mat Min Traps Triggered 2 | . 2 . . Indirectly . | . . . . Trap Hack Attempts . | . . . . Triggered . | . . . . Disarmed . | . . . . Reprogrammed . | . . . . Reused . | . . . . Traps Extracted . | . . . . Installed . | . . . . Triggered . | . . . . Machines | -11 -10 -9 -9 ---------- Run | Yrd Mat Mat Min Machines Disabled . | . . . . Max in Single Turn . | . . . . Machines Repaired . | . . . . Machines Dismantled . | . . . . Machines Sabotaged . | . . . . Overloaded Fab Kills . | . . . . Hacking | -11 -10 -9 -9 --------- Run | Yrd Mat Mat Min Machines Accessed 7 | . 4 3 . Terminals 7 | . 4 3 . Fabricators . | . . . . Repair Stations . | . . . . Recycling Units . | . . . . Scanalyzers . | . . . . Garrison Access . | . . . . Total Hacks 20 | . 12 8 . Successful 12 | . 8 4 . Failed 8 | . 4 4 . Catastrophic . | . . . . Database Lockouts . | . . . . Manual 11 | . 5 6 . Terminals 20 | . 12 8 . Fabricators . | . . . . Repair Stations . | . . . . Recycling Units . | . . . . Scanalyzers . | . . . . Garrison Access . | . . . . Terminal Hacks 5 | . 4 1 . Robot Analysis 2 | . 1 1 . Prototype ID Bank 1 | . 1 . . Hauler Manifests 1 | . 1 . . Zone Layout 1 | . 1 . . Fabricator Hacks . | . . . . Repair Station Hacks . | . . . . Recycling Unit Hacks . | . . . . Scanalyzer . | . . . . Garrison Access Hacks . | . . . . Unauthorized Hacks 7 | . 4 3 . Terminals 7 | . 4 3 . Botnet 7 | . 4 3 . Fabricators . | . . . . Repair Stations . | . . . . Recycling Units . | . . . . Scanalyzers . | . . . . Garrison Access . | . . . . Data Cores Recovered . | . . . . Used . | . . . . Hacking Detections 5 | . 4 1 . Full Trace Events . | . . . . Feedback Events . | . . . . Feedback Blocked . | . . . . Robot Schematics Acquired . | . . . . Robots Built . | . . . . Authchips . | . . . . Time . | . . . . Total Robot Build Rating . | . . . . Part Schematics Acquired . | . . . . Parts Built . | . . . . Authchips . | . . . . Time . | . . . . Total Part Build Rating . | . . . . Part Studies Acquired . | . . . . Parts Repaired . | . . . . Time . | . . . . Parts Recycled . | . . . . Recycled Matter . | . . . . Retrieved Matter . | . . . . Retrieved Components . | . . . . Parts Scanalyzed . | . . . . Part Schematics Acquired . | . . . . Parts Damaged . | . . . . Bothacking | -11 -10 -9 -9 ------------ Run | Yrd Mat Mat Min Used RIF Installer . | . . . . Robots Hacked . | . . . . Non-combat . | . . . . Combat . | . . . . Robot Hacks Applied . | . . . . Relay Couplers Released . | . . . . Fabnet Peak Effective % . | . . . . Robots Rewired . | . . . . Allies Hacked . | . . . . Hacks Repelled . | . . . . Allies | -11 -10 -9 -9 -------- Run | Yrd Mat Mat Min Total Allies . | . . . . Largest Group . | . . . . Highest-Rated Group . | . . . . Highest-Rated Ally . | . . . . Total Orders . | . . . . Ally Attacks . | . . . . Total Damage . | . . . . Kills . | . . . . Allies Corrupted . | . . . . Allies Melted . | . . . . Intel | -11 -10 -9 -9 ------- Run | Yrd Mat Mat Min Active Infowar (turns) . | . . . . Robot Analysis Total 2 | . 1 1 . Derelict Logs Recovered . | . . . . Drone Launches . | . . . . Drone Recoveries . | . . . . Exploration | -11 -10 -9 -9 ------------- Run | Yrd Mat Mat Min Turns Passed 1046 | 141 661 217 27 Spaces Moved 637 | 77 348 195 17 Core 14 | 14 . . . Treads 458 | 63 348 47 . Legs . | . . . . Wheels . | . . . . Hover . | . . . . Flight 165 | . . 148 17 Fastest Speed 31 | 50 160 31 31 Average Speed 125 | 147 160 62 31 Slowest Speed 160 | 160 160 160 31 Overloaded Moves . | . . . . Propulsion Burnouts . | . . . . Robots Hopped 1 | . . 1 . Potential Cave-ins . | . . . . Cave-ins Triggered . | . . . . Exploration Rate (%) 22 | 5 56 20 7 Regions Visited 3 Branch Regions 1 Pre-discovered Areas . | . . . . Known Exits Taken . | . . . . Unknown Exits Taken 3 | 1 1 1 . Scrap Searched . | . . . . Spaces Dug . | . . . . Terrain Destroyed . | . . . . Melee . | . . . . Projectile . | . . . . AOE . | . . . . Terrain Rammed . | . . . . Walls Destroyed . | . . . . Machines Disabled . | . . . . Actions | -11 -10 -9 -9 --------- Run | Yrd Mat Mat Min Total 765 | 98 403 240 24 Wait 2 | . . 2 . Move 632 | 76 347 192 17 Hop 1 | . . 1 . Pick Up 30 | 12 12 6 . Fast Attach 1 | . 1 . . Attach 12 | 6 2 4 . Detach . | . . . . Swap 11 | 1 5 5 . Drop 15 | . 10 5 . Fire 61 | 3 26 25 7 Melee . | . . . . Ram . | . . . . Kick . | . . . . Crush . | . . . . Escape Stasis . | . . . . Rewire . | . . . . Trap . | . . . . Miscellaneous . | . . . . Route ------- -11/Scrapyard -10/Materials (discovered 3 exits: *Mat x2 / [*Min]) -9/Materials -9/Mines History --------- Turn | Location | Event 2 | -11/Scrapyard | Met Revision 17 8 | -11/Scrapyard | Discovered new exit (range 15) 142 | -11/Scrapyard | Entered Materials 300 | -10/Materials | Build established: Mutant 303 | -10/Materials | Discovered new exit (range 15) 527 | -10/Materials | Discovered new exit (range 15) 695 | -10/Materials | Discovered new exit (range 15) 803 | -10/Materials | Entered another Materials area 803 | -9/Materials | Evolved 2 slots: Propulsion x2 1017 | -9/Materials | Discovered new exit (range 8) 1020 | -9/Materials | Entered Mines 1021 | -9/Mines | Assembled infested the area 1047 | -9/Mines | Self-destructed Last Messages --------------- 00984_ Acquired Assault Rifle. 00994_ W-16 Scout destroyed. 00998_ Acquired 13 matter. 01008_ R-06 Scavenger collects Huge Storage Unit. 01011_ Acquired Assault Rifle. 01012_ Dropped Assault Rifle. 01017_ EXIT=FOUND LOCATION=UNKNOWN GOAL=ESCAPE 01021_ ALERT: Infestation in the mines, dispatching Demolisher response squad. 01021_ K-01 Serf collects debris. 01021_ K-01 Serf destroyed. 01021_ Acquired 19 matter. 01025_ K-01 Serf destroyed. 01029_ Acquired 13 matter. 01039_ Lgt. Nuclear Core destroyed. 01039_ Flight Unit destroyed. 01044_ as-56379 destroyed. Map ----- +----------------------------------------------------+ | ??????????????????????????????????? | | ??????????????????????????????????? | | ??????????????????????????????????? | | ??????????????????????????????????? | | ??????????????????????????????????? | | ??????????????????????????????????? | | ??????????????????????????????????? | | ??????????????????????????????????? | | ??????????????????????????????????? | | ??????????????????????????????????? | | ??????????????????????????????????? | | ??????????????????????????????????? | | ??????????????????????????????????? | | ??????????????????????????????????? | | ??????????????????????????????????? | | ??????????????????????????????????? | | ??????????????????????????????????? | | ??????????????????????????????????? | | ??????????????????????????????????? | | ??????????????????????????????????? | | ??##########??????????????????????? | | ??# #??????????????????????? | | ??# #????????#?????????????? | | ??# #????### #?????????????? | | ??# = #?### " #?????????????? | | ??# """ *@### #?????????????? | | ??# """ aaa #?????????????? | | ??# """ aaaa ##?????????????? | | ??# ##aa #??????????????? | | ??########## #??????????????? | | ???????????# #?????????????? | | ???????????## #?????????????? | | ????????????## ##?????????????? | | ??????????????######??????????????? | | ??????????????????????????????????? | | | | | | | | | | | | | | | | | | | | | | | | | | | | | | | +----------------------------------------------------+ Best States ------------- Heat Dissipation 28 Energy Generation 14 Energy Capacity 250 Matter Stores 300 Matter Capacity 300 Sight Range 16 Terrain Scan Density 10 Additional Mass Support 6 Core Shielding 20 Evasion (%) 63 Recoil Reduction 2 Item Schematics ----------------- None Robot Schematics ------------------ None Fabricated ------------ Nothing Repaired ---------- Nothing Studied --------- None Alien Tech Used ----------------- None Achievements -------------- You Again Challenges ------------ None Game ------ Seed HugeSiegeMachine Manual? 0 Play Time 00:13:40 Cumulative 52.0 hours Start 2025.10.27 @ 08:45:48 End 2025.10.27 @ 08:58:53 Sessions 1 Manual Loads 0 Difficulty Rogue Special Mode None Game No. 64 Rogue 64 Adventurer 0 Explorer 0 Win Type - Total 0 Types 0/0/0/0/0/0/0/0/0/0 Lore% 18 Gallery% 31 Achievement% 21 Wizard Run 0 Options --------- Layout 1 ASCII 0 Keyboard 0 Movement Mouse Keybinds 0 Fullscreen 2 Font 32/SmallcapsGlow Map View 50x35 Zoom Use 0% Tactical HUD 1 Map Filters NONE Filters NONE Steam 1 RUN: d9f4ef31-c287-405e-bf75-4863c891ecb6